fUSD/lending_fUSD_20250820
["ID","MTS","AMOUNT","RATE_DAILY","PERIOD"]
[380375404,1755713449745,-151.0,0.00023,7]
[380375405,1755713449755,-504.765621,0.00023,7]
[380375406,1755713449762,-386.811377,0.00023,7]
[380375407,1755713449770,-271.798213,0.00023,7]
[380375408,1755713449778,-151.0,0.00023,7]
[380375409,1755713449787,-504.765621,0.00023,7]
[380375410,1755713449795,-271.798213,0.00023,7]
[380375411,1755713449804,-249.36093578,0.00023,7]
[380375412,1755713449814,-151.0,0.00023,7]
[380375413,1755713449823,-151.0,0.00023,7]
[380375414,1755713449832,-504.765621,0.00023,7]
[380375415,1755713449841,-151.0,0.00023,7]
[380375416,1755713449850,-151.0,0.00023,7]
[380375417,1755713449859,-151.0,0.00023,7]
[380375418,1755713449869,-504.765621,0.00023,7]
[380375419,1755713449878,-156.783622,0.00023,7]
[380375420,1755713449887,-397.10042,0.00023,7]
[380375421,1755713449898,-151.0,0.00023,7]
[380375422,1755713449907,-156.783622,0.00023,7]
[380375423,1755713449917,-151.0,0.00023,7]
[380375424,1755713449926,-397.10042,0.00023,7]
[380375425,1755713449935,-156.783622,0.00023,7]
[380375426,1755713449945,-397.10042,0.00023,7]
[380375427,1755713449954,-397.10042,0.00023,7]
[380375428,1755713449963,-156.783622,0.00023,7]
[380375429,1755713449973,-151.0,0.00023,7]
[380375430,1755713449982,-151.0,0.00023,7]
[380375431,1755713449991,-199.429552,0.00023,7]
[380375432,1755713450001,-262.789587,0.00023,7]
[380375433,1755713450010,-199.429552,0.00023,7]
[380375434,1755713450020,-199.429552,0.00023,7]
[380375435,1755713450029,-239.884043,0.00023,7]
[380375436,1755713450038,-199.429552,0.00023,7]
[380375437,1755713450048,-239.884043,0.00023,7]
[380375438,1755713450058,-210.943916,0.00023,7]
[380375439,1755713450068,-151.0,0.00023,7]
[380375440,1755713450077,-239.884043,0.00023,7]
[380375441,1755713450088,-210.943916,0.00023,7]
[380375442,1755713450098,-151.0,0.00023,7]
[380375443,1755713450108,-239.884043,0.00023,7]
[380375444,1755713450119,-210.943916,0.00023,7]
[380375445,1755713450129,-151.0,0.00023,7]
[380375446,1755713450139,-210.943916,0.00023,7]
[380375447,1755713450151,-151.0,0.00023,7]
[380375448,1755713450161,-151.0,0.00023,7]
[380375449,1755713450171,-151.0,0.00023,7]
[380375450,1755713450180,-151.0,0.00023,7]
[380375451,1755713450189,-151.0,0.00023,7]
[380375452,1755713450199,-151.0,0.00023,7]
[380375453,1755713450208,-153.412608,0.00023,7]
[380375454,1755713450217,-151.0,0.00023,7]
[380375455,1755713450226,-151.0,0.00023,7]
[380375456,1755713450235,-944.52376,0.00023,7]
[380375457,1755713450245,-151.0,0.00023,7]
[380375458,1755713450254,-151.0,0.00023,7]
[380375459,1755713450264,-944.52376,0.00023,7]
[380375460,1755713450273,-689.144136,0.00023,7]
[380375461,1755713450282,-944.52376,0.00023,7]
[380375462,1755713450291,-151.0,0.00023,7]
[380375463,1755713450301,-689.144136,0.00023,7]
[380375464,1755713450311,-944.52376,0.00023,7]
[380375465,1755713450321,-689.144136,0.00023,7]
[380375466,1755713450331,-689.144136,0.00023,7]
[380375467,1755713450341,-151.0,0.00023,7]
[380375468,1755713450350,-257.668352,0.00023,7]
[380375469,1755713450359,-433.58237,0.00023,7]
[380375470,1755713450369,-151.0,0.00023,7]
[380375471,1755713450379,-187.588291,0.00023,7]
[380375472,1755713450389,-433.58237,0.00023,7]
[380375473,1755713450400,-151.0,0.00023,7]
[380375474,1755713450410,-433.58237,0.00023,7]
[380375475,1755713450419,-433.58237,0.00023,7]
[380375476,1755713450428,-151.0,0.00023,7]
[380375477,1755713450438,-151.0,0.00023,7]
[380375478,1755713450448,-151.0,0.00023,7]
[380375479,1755713450457,-151.0,0.00023,7]
[380375480,1755713450466,-187.588291,0.00023,7]
[380375481,1755713450475,-324.7297,0.00023,7]
[380375482,1755713450485,-330.954306,0.00023,7]
[380375483,1755713450494,-187.588291,0.00023,7]
[380375484,1755713450503,-330.954306,0.00023,7]
[380375485,1755713450513,-324.7297,0.00023,7]
[380375486,1755713450522,-151.0,0.00023,7]
[380375487,1755713450531,-330.954306,0.00023,7]
[380375488,1755713450540,-187.588291,0.00023,7]
[380375489,1755713450549,-324.7297,0.00023,7]
[380375490,1755713450557,-330.954306,0.00023,7]
[380375491,1755713450564,-151.0,0.00023,7]
[380375492,1755713450572,-324.7297,0.00023,7]
[380375493,1755713450581,-151.0,0.00023,7]
[380375494,1755713450590,-173.144823,0.00023,7]
[380375495,1755713450599,-173.144823,0.00023,7]
[380375496,1755713450608,-173.144823,0.00023,7]
[380375497,1755713450617,-173.144823,0.00023,7]
[380375498,1755713450626,-151.0,0.00023,7]
[380375499,1755713450635,-151.0,0.00023,7]
[380375500,1755713450645,-151.0,0.00023,7]
[380375501,1755713450655,-151.0,0.00023,7]
[380375502,1755713450665,-253.209585,0.00023,7]
[380375503,1755713450674,-151.0,0.00023,7]
[380375504,1755713450683,-151.0,0.00023,7]
[380375505,1755713450693,-5831.562045,0.00023,7]
[380375506,1755713450704,-5831.562045,0.00023,7]
[380375507,1755713450715,-5831.562045,0.00023,7]
[380375508,1755713450724,-5831.562045,0.00023,7]
[380375509,1755713450734,-151.0,0.00023,7]
[380375510,1755713450744,-151.0,0.00023,7]
[380375511,1755713450753,-151.0,0.00023,7]
[380375512,1755713450763,-700.201196,0.00023,7]
[380375513,1755713450773,-700.201196,0.00023,7]
[380375514,1755713450784,-700.201196,0.00023,7]
[380375515,1755713450793,-151.0,0.00023,7]
[380375516,1755713450802,-700.201196,0.00023,7]
[380375517,1755713450812,-151.0,0.00023,7]
[380375518,1755713450821,-151.0,0.00023,7]
[380375519,1755713450831,-151.0,0.00023,7]
[380375520,1755713450840,-151.0,0.00023,7]
[380375521,1755713450851,-151.0,0.00023,7]
[380375522,1755713450861,-206.392357,0.00023,7]
[380375523,1755713450870,-206.392357,0.00023,7]
[380375524,1755713450879,-206.392357,0.00023,7]
[380375525,1755713450889,-273.696879,0.00023,7]
[380375526,1755713450898,-206.392357,0.00023,7]
[380375527,1755713450908,-150.0,0.00023011,4]
[380375528,1755713450917,-150.0,0.00023011,4]
[380375529,1755713450928,-151.0,0.00023019,7]
[380375530,1755713450937,-151.0,0.00023019,7]
[380375531,1755713450946,-231.364099,0.00023019,7]
[380375532,1755713450955,-151.0,0.00023019,7]
[380375533,1755713450965,-231.364099,0.00023019,7]
[380375534,1755713450975,-151.0,0.00023019,7]
[380375535,1755713450984,-231.364099,0.00023019,7]
[380375536,1755713450994,-151.0,0.00023019,7]
[380375537,1755713451005,-231.364099,0.00023019,7]
[380375538,1755713451015,-151.0,0.00023019,7]
[380375539,1755713451025,-151.0,0.00023019,7]
[380375540,1755713451034,-151.0,0.00023019,7]
[380375541,1755713451044,-151.0,0.00023019,7]
[380375542,1755713451054,-151.0,0.00023019,7]
[380375543,1755713451064,-177.499653,0.00023019,7]
[380375544,1755713451073,-151.0,0.00023019,7]
[380375545,1755713451082,-151.0,0.00023019,7]
[380375546,1755713451092,-151.0,0.00023019,7]
[380375547,1755713451102,-151.0,0.00023019,7]
[380375548,1755713451113,-178.36484,0.00023019,7]
[380375549,1755713451134,-151.0,0.00023019,7]
[380375550,1755713451146,-279.706543,0.00023019,7]
[380375551,1755713451156,-279.706543,0.00023019,7]
[380375552,1755713451167,-837.127411,0.00023019,7]
[380375553,1755713451177,-837.127411,0.00023019,7]
[380375554,1755713451187,-837.127411,0.00023019,7]
[380375555,1755713451198,-837.127411,0.00023019,7]
[380375556,1755713451209,-279.706543,0.00023019,7]
[380375557,1755713451219,-279.706543,0.00023019,7]
[380375558,1755713451229,-151.0,0.00023042,7]
[380375559,1755713451239,-417.804054,0.00023042,7]
[380375560,1755713451249,-417.804054,0.00023042,7]
[380375561,1755713451259,-417.804054,0.00023042,7]
[380375562,1755713451268,-417.804054,0.00023042,7]
[380375563,1755713451278,-151.0,0.00023042,7]
[380375564,1755713451287,-462.198119,0.00023042,7]
[380375565,1755713451297,-151.0,0.00023042,7]
[380375566,1755713451307,-151.0,0.00023042,7]
[380375567,1755713451317,-462.198119,0.00023042,7]
[380375568,1755713451326,-151.0,0.00023042,7]
[380375569,1755713451336,-462.198119,0.00023042,7]
[380375570,1755713451346,-151.0,0.00023042,7]
[380375571,1755713451356,-151.0,0.00023042,7]
[380375572,1755713451366,-462.198119,0.00023042,7]
[380375573,1755713451376,-151.0,0.00023042,7]
[380375574,1755713451385,-153.78218,0.00023042,7]
[380375575,1755713451396,-243.253298,0.00023042,7]
[380375576,1755713451406,-151.0,0.00023042,7]
[380375577,1755713451415,-261.258607,0.00023042,7]
[380375578,1755713451425,-261.258607,0.00023042,7]
[380375579,1755713451435,-261.258607,0.00023042,7]
[380375580,1755713451444,-261.258607,0.00023042,7]
[380375581,1755713451455,-6368.535591,0.00023064,4]
[380375582,1755713451465,-4113.43918626,0.00023064,4]
[380375583,1755713451475,-369.6995532,0.00023064,4]
[380375584,1755713451484,-1500.0,0.00023068,2]
[380375585,1755713451494,-1214.83317393,0.00023068,2]
[380375586,1755713451504,-1500.0,0.00023068,2]
[380375587,1755713451513,-1500.0,0.00023068,2]
[380375588,1755713451523,-1231.4722558,0.00023068,2]
[380375589,1755713451532,-1500.0,0.00023068,2]
[380375590,1755713451542,-1500.0,0.00023068,2]
[380375591,1755713451551,-163.38670319,0.00023096,30]
[380375592,1755713451560,-666.0,0.00023096,2]
[380375593,1755713451571,-151.0,0.00023097,7]
[380375594,1755713451580,-151.0,0.00023097,7]
[380375595,1755713451589,-290.645003,0.00023097,7]
[380375596,1755713451599,-151.0,0.00023097,7]
[380375597,1755713451608,-151.0,0.00023097,7]
[380375598,1755713451618,-182.521038,0.00023097,7]
[380375599,1755713451627,-151.0,0.00023097,7]
[380375600,1755713451636,-151.0,0.00023097,7]
[380375601,1755713451647,-151.0,0.00023097,7]
[380375602,1755713451657,-151.0,0.00023097,7]
[380375603,1755713451667,-151.0,0.00023097,7]
[380375604,1755713451676,-151.181606,0.00023097,7]
[380375605,1755713451686,-151.0,0.00023097,7]
[380375606,1755713451695,-151.0,0.00023097,7]
[380375607,1755713451704,-151.488793,0.00023097,7]
[380375608,1755713451716,-151.0,0.00023097,7]
[380375609,1755713451726,-151.0,0.00023097,7]
[380375610,1755713451735,-151.0,0.00023097,7]
[380375611,1755713451745,-151.0,0.00023097,7]
[380375612,1755713451754,-151.0,0.00023097,7]
[380375613,1755713451764,-364.588034,0.00023097,7]
[380375614,1755713451773,-151.0,0.00023097,7]
[380375615,1755713451782,-364.588034,0.00023097,7]
[380375616,1755713451793,-364.588034,0.00023097,7]
[380375617,1755713451803,-364.588034,0.00023097,7]
[380375618,1755713451813,-151.0,0.00023097,7]
[380375619,1755713451822,-151.0,0.00023097,7]
[380375620,1755713451832,-151.0,0.00023097,7]
[380375621,1755713451841,-168.756402,0.00023097,7]
[380375622,1755713451851,-151.0,0.00023097,7]
[380375623,1755713451861,-151.0,0.00023097,7]
[380375624,1755713451870,-187.88490126,0.000231,2]
[380375625,1755713451880,-151.0,0.000231,7]
[380375626,1755713451889,-151.0,0.000231,7]
[380375627,1755713451901,-151.0,0.000231,7]
[380375628,1755713451911,-241.911173,0.000231,7]
[380375629,1755713451921,-151.0,0.000231,7]
[380375630,1755713451931,-151.0,0.000231,7]
[380375631,1755713451941,-151.0,0.000231,7]
[380375632,1755713451952,-151.0,0.000231,7]
[380375633,1755713451965,-151.0,0.000231,7]
[380375634,1755713451975,-151.0,0.000231,7]
[380375635,1755713451985,-837.36303169,0.00023146,2]
[380375636,1755713451995,-51052.10017431,0.000232,2]
[380375637,1755713452005,-150.0,0.00023218,4]
[380375638,1755713452014,-163.38670319,0.0002326,30]
[380375639,1755713452024,-510.0,0.00023288,7]
[380375640,1755713452033,-300.0,0.00023299,2]
[380375641,1755713452043,-150.0,0.00023299,2]
[380375642,1755713452052,-155540.39,0.000233,7]
[380375643,1755713452062,-6368.535591,0.00023312,4]
[380375644,1755713452072,-4113.43918626,0.00023312,4]
[380375645,1755713452082,-369.6995532,0.00023312,4]
[380375646,1755713452091,-151.0,0.00023325,2]
[380375647,1755713452100,-1488.6525325,0.00023347,2]
[380375648,1755713452111,-2222.22,0.00023351,2]
[380375649,1755713452120,-166.66,0.00023369,2]
[380375650,1755713452129,-600.0,0.0002337,2]
[380375651,1755713452139,-1000.0,0.000234,2]
[380375652,1755713452151,-178.77,0.000234,2]
[380375653,1755713452161,-2000.0,0.00023416,2]
[380375654,1755713452171,-968.73006626,0.00023416,2]
[380375655,1755713452181,-2000.0,0.00023416,2]
[380375656,1755713452190,-200.0,0.000235,2]
[380375657,1755713452199,-9213.25,0.000235,2]
[380375658,1755713452209,-1000.0,0.00023501,2]
[380375659,1755713452219,-539.09,0.00023512,2]
[380375660,1755713452228,-150.0,0.00023538,2]
[380375661,1755713452238,-1108.93896076,0.0002354,2]
[380375662,1755713452249,-1413.35357744,0.00023541,2]
[380375663,1755713452259,-1717.76819411,0.00023543,2]
[380375664,1755713452269,-2022.18281079,0.00023544,2]
[380375665,1755713452279,-1000.0,0.00023545,2]
[380375666,1755713452290,-2326.59742747,0.00023546,2]
[380375667,1755713452300,-2631.01204415,0.00023547,2]
[380375668,1755713452310,-2935.42666083,0.00023549,2]
[380375669,1755713452320,-3239.84127751,0.0002355,2]
[380375670,1755713452330,-3544.25589419,0.00023552,2]
[380375671,1755713452339,-6368.535591,0.0002356,4]
[380375672,1755713452349,-4113.43918626,0.0002356,4]
[380375673,1755713452358,-369.6995532,0.0002356,4]
[380375674,1755713452367,-510.0,0.00023562,7]
[380375675,1755713452377,-287.61899177,0.00023598,2]
[380375676,1755713452387,-334.5472959,0.00023598,2]
[380375677,1755713452398,-462.99344722,0.00023616,2]
[380375678,1755713452408,-2000.0,0.00023616,2]
[380375679,1755713452417,-2000.0,0.00023616,2]
[380375680,1755713452427,-2000.0,0.00023616,2]
[380375681,1755713452436,-2147.5437122,0.00023616,2]
[380375682,1755713452445,-150.0,0.00023633,4]
[380375683,1755713452454,-150.0,0.00023633,4]
[380375684,1755713452464,-150.0,0.00023633,4]
[380375685,1755713452473,-150.0,0.00023633,4]
[380375686,1755713452483,-150.0,0.00023633,4]
[380375687,1755713452493,-150.0,0.00023633,4]
[380375688,1755713452503,-4124.85479,0.0002368,2]
[380375689,1755713452513,-332.1632779,0.00023682,2]
[380375690,1755713452523,-744.0,0.00023726,2]
[380375691,1755713452533,-9776.58071388,0.00023748,3]
[380375692,1755713452543,-843.97594471,0.00023748,3]
[380375693,1755713452552,-254.0,0.0002377,2]
[380375694,1755713452561,-160.0,0.000238,3]
[380375695,1755713452572,-212.04014818,0.000238,3]
[380375696,1755713452581,-458.46930693,0.000238,3]
[380375697,1755713452590,-800.0,0.00023804,2]
[380375698,1755713452600,-6368.535591,0.00023808,4]
[380375699,1755713452609,-4113.43918626,0.00023808,4]
[380375700,1755713452619,-369.6995532,0.00023808,4]
[380375701,1755713452628,-510.0,0.00023836,7]
[380375702,1755713452638,-151.0,0.00023873,2]
[380375703,1755713452651,-500.0,0.000239,7]
[380375704,1755713452660,-500.0,0.000239,7]
[380375705,1755713452670,-500.0,0.000239,7]
[380375706,1755713452679,-272.19,0.000239,7]
[380375707,1755713452688,-500.0,0.000239,7]
[380375708,1755713452697,-500.0,0.000239,7]
[380375709,1755713452708,-500.0,0.000239,7]
[380375710,1755713452720,-500.0,0.000239,7]
[380375711,1755713452729,-500.0,0.000239,7]
[380375712,1755713452738,-500.0,0.000239,7]
[380375713,1755713452748,-500.0,0.000239,7]
[380375714,1755713452758,-500.0,0.000239,7]
[380375715,1755713452767,-500.0,0.000239,7]
[380375716,1755713452776,-500.0,0.000239,7]
[380375717,1755713452785,-500.0,0.000239,7]
[380375718,1755713452795,-500.0,0.000239,7]
[380375719,1755713452804,-500.0,0.000239,7]
[380375720,1755713452813,-500.0,0.000239,7]
[380375721,1755713452822,-500.0,0.000239,7]
[380375722,1755713452831,-500.0,0.000239,7]
[380375723,1755713452840,-500.0,0.000239,7]
[380375724,1755713452849,-500.0,0.000239,7]
[380375725,1755713452859,-500.0,0.000239,7]
[380375726,1755713452868,-500.0,0.000239,7]
[380375727,1755713452877,-500.0,0.000239,7]
[380375728,1755713452887,-500.0,0.000239,7]
[380375729,1755713452903,-613.32,0.000239,7]
[380375730,1755713452912,-500.0,0.000239,7]
[380375731,1755713452922,-500.0,0.000239,7]
[380375732,1755713452931,-5962.23,0.000239,7]
[380375733,1755713452941,-1000.0,0.00023903,2]
[380375734,1755713452950,-600.0,0.00023918,2]
[380375735,1755713452960,-2500.0,0.00023964,2]
[380375736,1755713452970,-2500.0,0.00023964,2]
[380375737,1755713452979,-400.0,0.0002397,2]
[380375738,1755713452988,-700.0,0.0002397,2]
[380375739,1755713452998,-2624.0,0.00023989,12]
[380375740,1755713453007,-26059.80761522,0.00024,2]
[380375741,1755713453016,-843.97594471,0.00024,7]
[380375742,1755713453027,-3600.0,0.00024,25]
[380375743,1755713453036,-160.0,0.00024,7]
[380375744,1755713453046,-1840.0,0.00024,2]
[380375745,1755713453055,-1000.0,0.00024029,2]
[380375746,1755713453065,-357.08350197,0.00024042,2]
[380375747,1755713453075,-150.0,0.00024047,4]
[380375748,1755713453086,-6368.535591,0.00024056,4]
[380375749,1755713453096,-4113.43918626,0.00024056,4]
[380375750,1755713453107,-369.6995532,0.00024056,4]
[380375751,1755713453117,-1100.0,0.00024078,2]
[380375752,1755713453127,-500.0,0.00024078,2]
[380375753,1755713453136,-666.0,0.00024099,2]
[380375754,1755713453149,-5271.13577209,0.000241,2]
[380375755,1755713453158,-510.0,0.0002411,7]
[380375756,1755713453167,-839.90309335,0.00024147,2]
[380375757,1755713453176,-510.0,0.00024164,7]
[380375758,1755713453186,-2500.0,0.00024164,2]
[380375759,1755713453195,-2500.0,0.00024164,2]
[380375760,1755713453204,-2500.0,0.00024164,2]
[380375761,1755713453213,-2364.44,0.00024191,6]
[380375762,1755713453223,-412.67267219,0.0002421,2]
[380375763,1755713453232,-3615.89024842,0.0002421,2]
[380375764,1755713453241,-1000.0,0.00024214,2]
[380375765,1755713453250,-21022.77453159,0.00024227,2]
[380375766,1755713453259,-150.0,0.00024238,2]
[380375767,1755713453268,-150.0,0.00024255,4]
[380375768,1755713453278,-150.0,0.00024255,4]
[380375769,1755713453287,-178.77,0.0002428,2]
[380375770,1755713453301,-1000.0,0.00024286,2]
[380375771,1755713453310,-155540.39,0.000243,7]
[380375772,1755713453320,-6368.535591,0.00024304,4]
[380375773,1755713453330,-4113.43918626,0.00024304,4]
[380375774,1755713453340,-369.6995532,0.00024304,4]
[380375775,1755713453359,-150.0,0.0002431,2]
[380375776,1755713453369,-152.0,0.00024327,3]
[380375777,1755713453379,-1425.0,0.0002436,2]
[380375778,1755713453389,-2580.0,0.00024367,2]
[380375779,1755713453402,-216.0,0.0002437,2]
[380375780,1755713453412,-2580.0,0.00024381,2]
[380375781,1755713453421,-510.0,0.00024384,7]
[380375782,1755713453431,-178.77,0.00024396,2]
[380375783,1755713453440,-508.0,0.00024397,2]
[380375784,1755713453450,-151.0,0.00024421,2]
[380375785,1755713453458,-158.75385276,0.00024427,2]
[380375786,1755713453467,-2580.0,0.00024428,2]
[380375787,1755713453476,-150.0,0.00024431,2]
[380375788,1755713453486,-150.0,0.0002446,2]
[380375789,1755713453495,-2580.0,0.00024465,2]
[380375790,1755713453505,-2583.0,0.00024465,2]
[380375791,1755713453514,-600.0,0.00024466,2]
[380375792,1755713453523,-397.13,0.00024501,2]
[380375793,1755713453532,-3000.0,0.00024512,2]
[380375794,1755713453541,-300.0,0.00024538,4]
[380375795,1755713453550,-150.0,0.00024547,2]
[380375796,1755713453559,-6368.535591,0.00024552,4]
[380375797,1755713453569,-4113.43918626,0.00024552,4]
[380375798,1755713453578,-369.6995532,0.00024552,4]
[380375799,1755713453587,-500.0,0.00024593,2]
[380375800,1755713453597,-744.0,0.00024616,2]
[380375801,1755713453607,-200.0,0.00024626,2]
[380375802,1755713453616,-584.24813624,0.0002465,2]
[380375803,1755713453625,-163.51182848,0.0002465,2]
[380375804,1755713453635,-200.0,0.00024657,2]
[380375805,1755713453644,-153.0,0.00024658,2]
[380375806,1755713453657,-153.0,0.00024658,2]
[380375807,1755713453667,-185.14408527,0.00024658,2]
[380375808,1755713453677,-317.044344,0.00024658,7]
[380375809,1755713453686,-317.044344,0.00024658,7]
[380375810,1755713453696,-317.044344,0.00024658,7]
[380375811,1755713453706,-317.044344,0.00024658,7]
[380375812,1755713453716,-415.498254,0.00024658,7]
[380375813,1755713453726,-415.498254,0.00024658,7]
[380375814,1755713453736,-415.498254,0.00024658,7]
[380375815,1755713453746,-415.498254,0.00024658,7]
[380375816,1755713453755,-151.0,0.00024658,7]
[380375817,1755713453764,-151.0,0.00024658,7]
[380375818,1755713453942,-1000.0,0.00024658,2]
[380375819,1755713453952,-4124.8548,0.0002468,2]
[380375820,1755713453961,-150.0,0.00024685,2]
[380375821,1755713453971,-150.0,0.00024685,2]
[380375822,1755713453981,-150.0,0.00024685,2]
[380375823,1755713453990,-150.0,0.00024685,2]
[380375824,1755713453999,-150.0,0.00024685,2]
[380375825,1755713454009,-500.0,0.00024685,2]
[380375826,1755713454018,-150.0,0.00024685,2]
[380375827,1755713454027,-150.0,0.00024685,2]
[380375828,1755713454037,-150.0,0.00024685,2]
[380375829,1755713454046,-150.0,0.00024685,2]
[380375830,1755713454055,-150.0,0.00024685,2]
[380375831,1755713454066,-150.0,0.00024685,2]
[380375832,1755713454076,-500.0,0.00024685,2]
[380375833,1755713454085,-150.0,0.00024685,2]
[380375834,1755713454095,-500.0,0.00024685,2]
[380375835,1755713454104,-500.0,0.00024685,2]
[380375836,1755713454114,-150.0,0.00024685,2]
[380375837,1755713454124,-150.0,0.00024685,2]
[380375838,1755713454134,-500.0,0.00024685,2]
[380375839,1755713454143,-150.0,0.00024685,2]
[380375840,1755713454155,-500.0,0.00024685,2]
[380375841,1755713454164,-200.0,0.00024685,2]
[380375842,1755713454174,-150.0,0.00024685,2]
[380375843,1755713454184,-675.0,0.00024686,2]
[380375844,1755713454193,-200.0,0.000247,2]
[380375845,1755713454203,-15191.83170045,0.000247,2]
[380375846,1755713454213,-2000.0,0.000247,2]
[380375847,1755713454223,-2222.22,0.00024702,2]
[380375848,1755713454232,-3000.0,0.00024712,2]
[380375849,1755713454242,-3000.0,0.00024712,2]
[380375850,1755713454252,-1733.6646124,0.00024712,2]
[380375851,1755713454261,-500.0,0.0002474,2]
[380375852,1755713454270,-500.0,0.00024767,2]
[380375853,1755713454280,-1000.0,0.00024773,2]
[380375854,1755713454289,-200.0,0.0002479,2]
[380375855,1755713454298,-300.0,0.00024799,10]
[380375856,1755713454307,-300.0,0.00024799,10]
[380375857,1755713454317,-666.0,0.00024799,2]
[380375858,1755713454326,-300.0,0.00024799,10]
[380375859,1755713454336,-300.0,0.00024799,10]
[380375860,1755713454345,-666.0,0.00024799,2]
[380375861,1755713454354,-201.06449839,0.00024799,10]
[380375864,1755714055915,201.12,0.00025876,120]
[380375865,1755714252838,-151.0,0.00013699,2]
[380375866,1755714265251,-151.0,0.00013699,2]
[380375867,1755714308916,9657.17510097,0.00011,2]
[380375868,1755714308942,10000.0,0.00011,2]
[380375869,1755714308966,10000.0,0.00011,2]
[380375900,1755714631615,-310.0,0.00010748,2]
[380375901,1755714631625,-7.91518327,0.00010748,2]
[380375902,1755714631636,-242.08481673,0.00010748,2]
[380375903,1755714631646,-163.89626537,0.00010854,2]
[380375904,1755714631658,-86.10373463,0.00010854,2]
[380375905,1755714631667,-428.79226537,0.00010899,2]
[380375906,1755714631679,-291.9895,0.00010899,2]
[380375907,1755714631690,-479.21823463,0.00010899,2]
[380375908,1755714631700,-255.05964432,0.000109,2]
[380375909,1755714631710,-162.97072442,0.000109,2]
[380375910,1755714631720,-746.48406773,0.000109,2]
[380375911,1755714631729,-501.2673289,0.000109,2]
[380375912,1755714631750,-9.59675562,0.000109,2]
[380375913,1755714631759,-385.67772916,0.000109,2]
[380375914,1755714631771,-233.82358704,0.000109,2]
[380375915,1755714631780,-218.35123036,0.000109,2]
[380375916,1755714631789,-215.20873533,0.000109,2]
[380375917,1755714631800,-294.43265834,0.000109,2]
[380375918,1755714631812,-616.93065259,0.000109,2]
[380375919,1755714631824,-623.80224718,0.000109,2]
[380375920,1755714631835,-63.64494876,0.00010904,2]
[380375921,1755714631853,-279.35505124,0.00010904,2]
[380375922,1755714631864,-917.35464008,0.00010904,2]
[380375923,1755714631877,-1405.64535992,0.00010904,2]
[380375924,1755714631887,-500.0,0.00010973,2]
[380375925,1755714631898,-500.0,0.00010973,2]
[380375926,1755714631908,-219.91107093,0.00010973,2]
[380375927,1755714631917,-500.0,0.00010973,2]
[380375928,1755714631927,-168.40907688,0.00010973,2]
[380375929,1755714631936,-500.0,0.00010973,2]
[380375930,1755714631945,-500.0,0.00010973,2]
[380375931,1755714631955,-500.0,0.00010973,2]
[380375932,1755714631964,-500.0,0.00010973,2]
[380375933,1755714631974,-500.0,0.00010973,2]
[380375934,1755714631983,-173.31674473,0.00010973,2]
[380375935,1755714631992,-500.0,0.00010973,2]